bitfinex/quotes_BTCUSD_20241025
["timestamp","ask_amount","ask_price","bid_price","bid_amount"]
[1729877700227,0.18740185,67355.0,67354.0,0.02518554]
[1729877700465,0.18403445,67355.0,67354.0,0.02518554]
[1729877700681,0.18740185,67355.0,67354.0,0.02518554]
[1729877700934,0.35161741,67355.0,67354.0,0.02518554]
[1729877701162,0.44865001,67355.0,67354.0,0.02518554]
[1729877701380,0.47058882,67355.0,67354.0,0.02518554]
[1729877701592,0.39937081,67355.0,67354.0,0.02518554]
[1729877701807,0.47066417,67355.0,67354.0,0.02518554]
[1729877702035,0.46566417,67355.0,67354.0,0.02518554]
[1729877702262,0.4300123,67355.0,67354.0,0.02518554]
[1729877702505,0.21974999,67355.0,67354.0,0.02518554]
[1729877702710,0.20118416,67355.0,67354.0,0.02518554]
[1729877705279,0.27320725,67355.0,67354.0,0.02518554]
[1729877705503,0.20116282,67355.0,67354.0,0.02518554]
[1729877706631,0.19779542,67355.0,67354.0,0.02518554]
[1729877706842,0.18409308,67355.0,67354.0,0.02518554]
[1729877707053,0.18746048,67355.0,67354.0,0.02518554]
[1729877707494,0.18409308,67355.0,67354.0,0.02518554]
[1729877708579,0.148467,67355.0,67354.0,0.02518554]
[1729877708788,0.18409749,67355.0,67354.0,0.02518554]
[1729877709451,0.03563049,67355.0,67354.0,0.10098554]
[1729877709653,0.01370403,67355.0,67354.0,0.25148935]
[1729877710321,0.01370403,67355.0,67354.0,0.10098554]
[1729877710529,0.16217103,67355.0,67354.0,0.02518554]
[1729877710736,0.18409749,67355.0,67354.0,0.02518554]
[1729877710936,0.2011703,67355.0,67354.0,0.02518554]
[1729877711648,0.22309627,67355.0,67354.0,0.02518554]
[1729877711865,0.22309732,67355.0,67354.0,0.02518554]
[1729877712076,0.20117266,67355.0,67354.0,0.02518554]
[1729877712281,0.2231007,67355.0,67354.0,0.02518554]
[1729877712490,0.20117266,67355.0,67354.0,0.02518554]
[1729877712952,0.19780526,67355.0,67354.0,0.02518554]
[1729877713185,0.04933826,67355.0,67354.0,0.02518554]
[1729877713408,0.03563319,67355.0,67354.0,0.02518554]
[1729877713623,0.03563319,67355.0,67354.0,0.32415835]
[1729877713839,0.03563319,67355.0,67354.0,0.17568935]
[1729877714081,0.16217207,67355.0,67354.0,0.02518554]
[1729877714301,0.18410019,67355.0,67354.0,0.02518554]
[1729877714954,0.18746759,67355.0,67354.0,0.02518554]
[1729877715807,0.18748964,67355.0,67354.0,0.02518554]
[1729877716660,0.18412224,67355.0,67354.0,0.02518554]
[1729877717344,0.16218055,67355.0,67354.0,0.02518554]
[1729877717577,0.18412224,67355.0,67354.0,0.02518554]
[1729877717816,0.16218055,67355.0,67354.0,0.02518554]
[1729877718263,0.01371355,67355.0,67354.0,0.49575835]
[1729877718699,0.296902,67363.0,67357.0,0.148461]
[1729877718914,0.01372049,67362.0,67357.0,0.29896381]
[1729877719153,0.01372049,67361.0,67357.0,0.15050381]
[1729877719413,0.01372049,67360.0,67357.0,0.15050381]
[1729877719646,0.01372049,67359.0,67357.0,0.15050381]
[1729877719865,0.01372049,67358.0,67357.0,0.29896481]
[1729877720104,0.01372049,67358.0,67357.0,0.15050381]
[1729877720319,0.01372049,67358.0,67354.0,0.19678554]
[1729877720320,0.296925,67357.0,67354.0,0.19678554]
[1729877720555,0.148467,67355.0,67354.0,0.10408554]
[1729877720772,0.1621836,67355.0,67354.0,0.02518554]
[1729877720983,0.18413647,67355.0,67354.0,0.02518554]
[1729877721938,0.1621836,67355.0,67354.0,0.02518554]
[1729877722565,0.18413647,67355.0,67354.0,0.02518554]
[1729877722789,0.1621836,67355.0,67354.0,0.02518554]
[1729877724287,0.18413647,67355.0,67354.0,0.02518554]
[1729877724525,0.1621836,67355.0,67354.0,0.02518554]
[1729877725580,0.18413647,67355.0,67354.0,0.02518554]
[1729877726304,0.148467,67355.0,67354.0,0.02518554]
[1729877726549,0.18411236,67355.0,67354.0,0.02518554]
[1729877726809,0.148467,67355.0,67354.0,0.02518554]
[1729877727037,0.296908,67361.0,67354.0,0.02518554]
[1729877727038,0.22257835,67367.0,67355.0,0.005]
[1729877727261,0.22257835,67367.0,67357.0,0.148461]
[1729877727262,0.22257835,67360.0,67357.0,0.148461]
[1729877727481,0.296885,67366.0,67358.0,0.15050381]
[1729877727722,0.29689,67365.0,67358.0,0.15050381]
[1729877727964,0.03564993,67365.0,67359.0,0.00296878]
[1729877728202,0.01371151,67364.0,67361.0,0.0855]
[1729877728423,0.51943135,67374.0,67362.0,0.15050381]
[1729877728424,0.01371151,67363.0,67362.0,0.15050381]
[1729877728644,0.01370812,67366.0,67363.0,0.148448]
[1729877728906,0.148436,67369.0,67364.0,0.29894981]
[1729877729136,0.296868,67370.0,67364.0,0.15050381]
[1729877729137,0.16214729,67368.0,67364.0,0.15050381]
[1729877729385,0.01370829,67367.0,67364.0,0.15050381]
[1729877729609,0.148437,67369.0,67364.0,0.15050381]
[1729877729832,0.01370352,67368.0,67364.0,0.15050381]
[1729877730058,0.16214352,67367.0,67364.0,0.15050381]
[1729877730283,0.14844,67367.0,67364.0,0.15050381]
[1729877730538,0.296876,67368.0,67364.0,0.15050381]
[1729877730790,0.148445,67365.0,67364.0,0.15050381]
[1729877731006,0.148437,67369.0,67364.0,0.29894981]
[1729877731269,0.01369715,67368.0,67365.0,0.247844]
[1729877731497,0.148437,67369.0,67366.0,0.15050381]
[1729877731722,0.22257835,67383.0,67367.0,0.0858]
[1729877731962,0.22257835,67373.0,67370.0,0.148432]
[1729877732184,0.148424,67375.0,67371.0,0.15050381]
[1729877732396,0.296836,67378.0,67371.0,0.15347212]
[1729877732614,0.148421,67376.0,67371.0,0.30190212]
[1729877733323,0.296837,67377.0,67371.0,0.30190212]
[1729877733324,0.148424,67375.0,67371.0,0.15347212]
[1729877733536,0.148426,67374.0,67371.0,0.15050381]
[1729877733769,0.296837,67377.0,67371.0,0.15050381]
[1729877733981,0.742047,67381.0,67371.0,0.15050381]
[1729877734199,0.0136854,67380.0,67371.0,0.15050381]
[1729877734423,0.148418,67378.0,67372.0,0.00296818]
[1729877734654,0.148417,67378.0,67373.0,0.29893081]
[1729877734872,0.22257835,67376.0,67373.0,0.15050381]
[1729877735091,0.22257835,67376.0,67366.0,0.005]
[1729877735092,0.22257835,67375.0,67366.0,0.005]
[1729877735300,0.1688579,67372.0,67368.0,0.15050381]
[1729877735536,0.148436,67369.0,67368.0,0.15050381]
[1729877739344,0.296863,67371.0,67368.0,0.15050381]
[1729877739553,0.14843,67372.0,67368.0,0.15050381]
[1729877739764,0.148434,67370.0,67368.0,0.15050381]
[1729877740004,0.148425,67374.0,67368.0,0.15050381]
[1729877740239,0.148427,67373.0,67368.0,0.15347226]
[1729877740467,0.148415,67379.0,67370.0,0.0903]
[1729877740718,0.01368637,67378.0,67374.0,0.148423]
[1729877740963,0.148415,67379.0,67375.0,0.15050381]
[1729877741192,0.296823,67380.0,67375.0,0.15050381]
[1729877741402,0.148412,67380.0,67375.0,0.15050381]
[1729877741610,0.148414,67379.0,67375.0,0.15050381]
[1729877741873,0.001646,67389.0,67375.0,0.450317]
[1729877742089,0.01368859,67388.0,67381.0,0.148409]
[1729877742317,0.01368859,67388.0,67381.0,0.29891281]
[1729877742547,0.001646,67389.0,67381.0,0.29891281]
[1729877742978,0.001646,67389.0,67381.0,0.42448052]
[1729877743208,0.001646,67389.0,67381.0,0.49731281]
[1729877743871,0.29679,67388.0,67381.0,0.22630381]
[1729877744094,0.3189109,67382.0,67381.0,0.22630381]
[1729877744313,0.3189109,67382.0,67372.0,0.075]
[1729877744314,0.1705039,67382.0,67372.0,0.075]
[1729877744593,0.296823,67380.0,67373.0,0.15050381]
[1729877744807,0.148417,67378.0,67373.0,0.29892981]
[1729877745256,0.148417,67378.0,67373.0,0.15050381]
[1729877745492,0.1705039,67382.0,67372.0,0.228428]
[1729877745493,0.1688579,67377.0,67372.0,0.075]
[1729877745724,0.29684,67377.0,67372.0,0.075]
[1729877745958,0.148427,67373.0,67372.0,0.075]
[1729877746231,0.29684,67377.0,67372.0,0.075]
[1729877746232,0.296841,67376.0,67372.0,0.075]
[1729877746455,0.148425,67374.0,67372.0,0.075]
[1729877746949,0.148424,67375.0,67372.0,0.075]
[1729877747170,0.296823,67380.0,67372.0,0.075]
[1729877747394,0.148426,67374.0,67372.0,0.07796826]
[1729877747651,0.22257835,67380.0,67372.0,0.075]
[1729877747652,0.51940235,67380.0,67372.0,0.075]
[1729877747879,0.148427,67373.0,67372.0,0.075]
[1729877748393,0.148425,67375.0,67372.0,0.075]
[1729877748605,0.148419,67377.0,67372.0,0.075]
[1729877748831,0.296832,67378.0,67372.0,0.075]
[1729877749065,0.148424,67375.0,67372.0,0.075]
[1729877749295,0.148423,67375.0,67372.0,0.075]
[1729877750397,0.296832,67378.0,67372.0,0.075]
[1729877750398,0.296832,67378.0,67372.0,0.223429]
[1729877750650,0.22257835,67380.0,67372.0,0.075]
[1729877750927,0.29684,67377.0,67372.0,0.075]
[1729877751177,0.296828,67379.0,67372.0,0.075]
[1729877751439,0.296828,67379.0,67369.0,0.005]
[1729877751440,0.39143625,67373.0,67361.0,0.0818]
[1729877751710,0.0789,67377.0,67362.0,0.22257835]
[1729877751711,0.3173029,67365.0,67362.0,0.22257835]
[1729877751935,0.148445,67365.0,67362.0,0.22257835]
[1729877752220,0.148445,67365.0,67359.0,0.148456]
[1729877752415,0.01369364,67366.0,67358.0,0.301919]
[1729877752655,0.29688,67368.0,67360.0,0.148455]
[1729877752656,0.148445,67365.0,67360.0,0.148455]
[1729877752894,0.148445,67365.0,67358.0,0.005]
[1729877753124,0.148443,67366.0,67360.0,0.148455]
[1729877753373,0.16213969,67365.0,67360.0,0.148455]
[1729877753595,0.16213969,67365.0,67358.0,0.301918]
[1729877754313,0.16213969,67365.0,67359.0,0.148457]
[1729877755056,0.50429759,67365.0,67349.0,0.0057]
[1729877755282,0.52622152,67365.0,67351.0,0.148473]
[1729877755501,0.52622152,67365.0,67352.0,0.37105135]
[1729877755732,0.5262403,67365.0,67352.0,0.37105135]
[1729877755957,0.5262403,67365.0,67351.0,0.22257835]
[1729877757419,0.5262403,67365.0,67352.0,0.22257835]
[1729877759055,0.53995078,67365.0,67352.0,0.22257835]
[1729877759312,0.53996032,67365.0,67352.0,0.22257835]
[1729877762390,0.4906029,67365.0,67352.0,0.22257835]
[1729877762669,0.5179934,67365.0,67352.0,0.22257835]
[1729877762883,0.1758355,67365.0,67353.0,0.15144021]
[1729877763102,0.148445,67365.0,67354.0,0.17365454]
[1729877763332,0.148445,67365.0,67356.0,0.0806]
[1729877764525,0.16214045,67365.0,67356.0,0.0806]
[1729877765257,0.16214045,67365.0,67354.0,0.02518554]
[1729877769345,0.01369545,67365.0,67356.0,0.296929]
[1729877769593,0.01369545,67365.0,67364.0,0.29977281]
[1729877769801,0.02282575,67379.0,67364.0,0.15132581]
[1729877769802,0.23627409,67372.0,67364.0,0.15132581]
[1729877770013,0.148445,67365.0,67364.0,0.000822]
[1729877770236,0.16214074,67365.0,67364.0,0.000822]
[1729877770492,0.1874197,67365.0,67364.0,0.000822]
[1729877771419,0.1840523,67365.0,67364.0,0.000822]
[1729877771865,0.16214074,67365.0,67364.0,0.000822]
[1729877772927,0.16214454,67365.0,67364.0,0.000822]
[1729877773367,0.01369954,67365.0,67364.0,0.23102581]
[1729877773587,0.2506039,67384.0,67364.0,0.23102581]
[1729877773588,0.01369954,67366.0,67364.0,0.23102581]
[1729877773802,0.22257835,67369.0,67365.0,0.15050381]
[1729877774048,0.01370898,67368.0,67367.0,0.148439]
[1729877774259,0.01370898,67368.0,67367.0,0.29894281]
[1729877774464,0.22257835,67373.0,67368.0,0.296873]
[1729877774698,0.01371305,67372.0,67369.0,0.15050381]
[1729877774914,0.02530811,67378.0,67371.0,0.148431]
[1729877775129,0.148421,67376.0,67369.0,0.29893881]
[1729877775408,0.03565392,67375.0,67369.0,0.15050381]
[1729877775620,0.03565392,67374.0,67369.0,0.29893881]
[1729877775836,0.01371321,67373.0,67370.0,0.148433]
[1729877776062,0.02194071,67376.0,67372.0,0.148429]
[1729877776295,0.01371694,67375.0,67372.0,0.15050381]
[1729877776524,0.01371694,67374.0,67372.0,0.15050381]
[1729877776763,0.01371694,67373.0,67372.0,0.15050381]
[1729877777234,0.01371694,67373.0,67369.0,0.148434]
[1729877777470,0.01371694,67372.0,67369.0,0.29893781]
[1729877777684,0.01371694,67371.0,67369.0,0.29893781]
[1729877777925,0.01371694,67370.0,67369.0,0.29893781]
[1729877778150,0.01372614,67370.0,67369.0,0.29893781]
[1729877780113,0.02196183,67378.0,67373.0,0.148426]
[1729877780328,0.03569158,67377.0,67373.0,0.29892981]
[1729877780544,0.03569158,67376.0,67373.0,0.15050381]
[1729877780755,0.22257835,67380.0,67373.0,0.15050381]
[1729877780756,0.03569158,67375.0,67373.0,0.15050381]
[1729877780974,0.03569158,67374.0,67373.0,0.15050381]
[1729877781207,0.01372975,67374.0,67373.0,0.29893081]
[1729877782141,0.01372975,67374.0,67373.0,0.38549908]
[1729877782377,0.001646,67382.0,67381.0,0.0786]
[1729877782590,0.001646,67382.0,67381.0,0.38548055]
[1729877782812,0.001646,67382.0,67381.0,0.38251281]
[1729877783104,0.001646,67382.0,67381.0,0.50771281]
[1729877783337,0.001646,67384.0,67383.0,0.229005]
[1729877783577,0.001646,67384.0,67383.0,0.41547623]
[1729877783805,0.001646,67389.0,67388.0,0.3552519]
[1729877784017,0.001646,67389.0,67388.0,0.67335571]
[1729877784731,0.001646,67389.0,67388.0,0.67535571]
[1729877785175,0.001646,67389.0,67388.0,0.67335571]
[1729877785667,0.001646,67389.0,67388.0,0.67535571]
[1729877786391,0.001646,67389.0,67388.0,0.77535571]
[1729877787283,0.001646,67407.0,67404.0,0.01]
[1729877787498,0.001646,67407.0,67406.0,0.43885781]
[1729877787720,0.001646,67407.0,67406.0,0.59525781]
[1729877788169,0.001646,67407.0,67406.0,0.62985296]
[1729877788379,0.001646,67407.0,67406.0,0.63185296]
[1729877788630,0.001646,67407.0,67406.0,0.62950654]
[1729877789536,0.001646,67407.0,67406.0,0.59525781]
[1729877790656,0.001646,67407.0,67406.0,0.60315566]
[1729877791093,0.001646,67407.0,67406.0,0.59325781]
[1729877791555,0.001646,67407.0,67406.0,0.39105781]
[1729877792682,0.001646,67407.0,67406.0,0.41405781]
[1729877794030,0.001646,67407.0,67406.0,0.41605781]
[1729877794538,0.001646,67407.0,67406.0,0.61545781]
[1729877795001,0.001646,67407.0,67406.0,0.68237321]
[1729877795965,0.1807639,67418.0,67417.0,0.4341879]
[1729877796187,0.1807639,67418.0,67417.0,0.77279171]
[1729877796650,0.22257835,67426.0,67425.0,0.188312]
[1729877796867,0.22257835,67426.0,67425.0,0.50567371]
[1729877797107,0.22257835,67442.0,67432.0,0.153297]
[1729877797365,0.22257835,67442.0,67432.0,0.49565871]
[1729877797616,0.22257835,67442.0,67441.0,0.148277]
[1729877797814,0.22257835,67442.0,67441.0,0.29878081]
[1729877798112,0.22257835,67449.0,67442.0,0.148274]
[1729877798344,0.001644,67450.0,67447.0,0.148264]
[1729877798345,0.22257835,67448.0,67447.0,0.148264]
[1729877798577,0.001644,67450.0,67447.0,0.15050381]
[1729877798826,0.001644,67450.0,67448.0,0.15050381]
[1729877799541,0.01524242,67450.0,67448.0,0.15050381]
[1729877799791,0.01506064,67450.0,67448.0,0.15050381]
[1729877800645,0.16331964,67450.0,67448.0,0.15050381]
[1729877800858,0.14972438,67450.0,67448.0,0.15050381]
[1729877801101,0.01359348,67449.0,67448.0,0.15050381]
[1729877802285,0.01359348,67449.0,67441.0,0.148277]
[1729877802286,0.16185348,67449.0,67441.0,0.148276]
[1729877802533,0.00146538,67450.0,67448.0,0.15050381]
[1729877802759,0.01506188,67450.0,67448.0,0.15050381]
[1729877802982,0.16331988,67450.0,67448.0,0.15050381]
[1729877803207,0.01359633,67449.0,67448.0,0.15050381]
[1729877803475,0.00146538,67450.0,67448.0,0.15050381]
[1729877803729,0.01360161,67449.0,67448.0,0.15050381]
[1729877805172,0.01360161,67449.0,67437.0,0.005]
[1729877805404,0.148266,67446.0,67440.0,0.22257835]
[1729877805629,0.01360161,67445.0,67441.0,0.15050381]
[1729877805910,0.148266,67446.0,67441.0,0.15050381]
[1729877805911,0.01360161,67444.0,67441.0,0.15050381]
[1729877806152,0.01360161,67443.0,67441.0,0.15050381]
[1729877806408,0.01360161,67442.0,67441.0,0.15050381]
[1729877806869,0.03537735,67442.0,67441.0,0.15050381]
[1729877807129,0.03537735,67442.0,67434.0,0.37087035]
[1729877807130,0.148279,67441.0,67434.0,0.37087035]
[1729877807386,0.02177574,67440.0,67435.0,0.15050381]
[1729877807613,0.03537735,67439.0,67435.0,0.29879381]
[1729877807835,0.03537735,67438.0,67435.0,0.29879381]
[1729877808055,0.01360161,67437.0,67435.0,0.29879381]
[1729877808276,0.148276,67442.0,67435.0,0.29879381]
[1729877808277,0.01360161,67436.0,67435.0,0.29879381]
[1729877809486,0.03542581,67436.0,67435.0,0.29879381]
[1729877810203,0.03542581,67436.0,67425.0,0.301622]
[1729877810428,0.0769,67441.0,67431.0,0.148297]
[1729877810429,0.03542581,67435.0,67431.0,0.148297]
[1729877810690,0.03542581,67434.0,67432.0,0.15050381]
[1729877810914,0.24524465,67437.0,67432.0,0.15050381]
[1729877810915,0.148288,67437.0,67432.0,0.15050381]
[1729877811157,0.0136461,67433.0,67432.0,0.15050381]
[1729877811379,0.02276953,67433.0,67432.0,0.15050381]
[1729877811626,0.05828967,67433.0,67432.0,0.15050381]
[1729877812305,0.05828967,67433.0,67432.0,0.29880081]
[1729877813888,0.05828967,67433.0,67432.0,0.15050381]
[1729877814395,0.05828967,67433.0,67426.0,0.22257835]
[1729877814396,0.15128967,67433.0,67426.0,0.22257835]
[1729877814622,0.093,67433.0,67432.0,0.000821]
[1729877814929,0.26319977,67433.0,67432.0,0.000821]
[1729877815140,0.29058085,67433.0,67432.0,0.000821]
[1729877815584,0.29058085,67433.0,67427.0,0.29881081]
[1729877815805,0.05855863,67432.0,67427.0,0.29881081]
[1729877816031,0.04486809,67431.0,67427.0,0.29881081]
[1729877816275,0.04486809,67430.0,67427.0,0.29881081]
[1729877816499,0.04486809,67429.0,67427.0,0.29881081]
[1729877816718,0.03559531,67428.0,67427.0,0.29881081]
[1729877817874,0.03559531,67428.0,67427.0,0.30177667]
[1729877818332,0.01370964,67439.0,67436.0,0.148288]
[1729877818580,0.02193542,67440.0,67439.0,0.148282]
[1729877819055,0.07129443,67440.0,67439.0,0.148282]
[1729877819725,0.07129443,67440.0,67430.0,0.005]
[1729877819974,0.04935901,67439.0,67438.0,0.148284]
[1729877820203,0.04935901,67439.0,67438.0,0.29878781]
[1729877820439,0.04935901,67439.0,67438.0,0.15050381]
[1729877820693,0.04935901,67439.0,67438.0,0.29878781]
[1729877820919,0.03564819,67439.0,67438.0,0.29878781]
[1729877821446,0.03565416,67439.0,67438.0,0.29878781]
[1729877822670,0.03565416,67439.0,67438.0,0.15050381]
[1729877822894,0.04936713,67439.0,67438.0,0.15050381]
[1729877824413,0.04936713,67439.0,67438.0,0.30175325]
[1729877824630,0.01371297,67439.0,67438.0,0.29878781]
[1729877826818,0.01371297,67439.0,67438.0,0.32678781]
[1729877827720,0.02743487,67439.0,67438.0,0.15050381]
[1729877828366,0.04938991,67439.0,67438.0,0.15050381]
[1729877828587,0.02357942,67440.0,67438.0,0.15050381]
[1729877828853,0.02357942,67440.0,67439.0,0.15050381]
[1729877829121,0.02357942,67440.0,67439.0,0.29878581]
[1729877829343,0.03731653,67440.0,67439.0,0.29878581]
[1729877829770,0.03731653,67440.0,67439.0,0.30378581]
[1729877830428,0.03731653,67440.0,67439.0,0.15050381]
[1729877831077,0.03731653,67440.0,67439.0,0.29878581]
[1729877831295,0.03731653,67440.0,67439.0,0.15050381]
[1729877831726,0.03731653,67440.0,67439.0,0.29878581]
[1729877831937,0.06018832,67440.0,67439.0,0.29878581]
[1729877833287,0.03731653,67440.0,67439.0,0.29878581]
[1729877833511,0.03731653,67440.0,67439.0,0.15050381]
[1729877833737,0.03731653,67440.0,67432.0,0.000822]
[1729877833738,0.37047326,67440.0,67432.0,0.000822]
[1729877834003,0.02287468,67438.0,67433.0,0.15050381]
[1729877834225,0.03567253,67437.0,67434.0,0.148292]
[1729877834445,0.03567253,67436.0,67435.0,0.15050381]
[1729877835971,0.03567253,67436.0,67435.0,0.29879381]
[1729877836652,0.03567253,67436.0,67435.0,0.47061714]
[1729877836877,0.03567253,67436.0,67435.0,0.46765171]
[1729877838250,0.03570206,67436.0,67435.0,0.29879381]
[1729877838468,0.03570206,67436.0,67435.0,0.15050381]
[1729877839324,0.18399006,67436.0,67435.0,0.15050381]
[1729877839539,0.03570206,67436.0,67435.0,0.15050381]
[1729877840653,0.03570206,67436.0,67435.0,0.29879381]
[1729877840880,0.03570206,67436.0,67435.0,0.15050381]
[1729877841312,0.03570206,67436.0,67435.0,0.29879381]
[1729877841966,0.03570206,67436.0,67435.0,0.15050381]
[1729877843045,0.149925,67440.0,67435.0,0.15050381]
[1729877843270,0.03569696,67439.0,67435.0,0.15050381]
[1729877843505,0.03569696,67438.0,67435.0,0.15050381]
[1729877843723,0.03569696,67437.0,67435.0,0.29879381]
[1729877843930,0.03569696,67436.0,67435.0,0.29879381]
[1729877844613,0.148295,67433.0,67432.0,0.000822]
[1729877844844,0.46114738,67433.0,67432.0,0.000822]
[1729877845064,0.31088983,67433.0,67432.0,0.000822]
[1729877845722,0.33376099,67433.0,67432.0,0.000822]
[1729877845951,0.31088983,67433.0,67432.0,0.000822]
[1729877846173,0.33376046,67433.0,67432.0,0.000822]
[1729877846393,0.31088983,67433.0,67432.0,0.000822]
[1729877846620,0.28892208,67433.0,67432.0,0.000822]
[1729877846851,0.19772208,67433.0,67432.0,0.000822]
[1729877847072,0.03569696,67433.0,67432.0,0.000822]
[1729877847300,0.04941685,67433.0,67432.0,0.000822]
[1729877848345,0.03569696,67433.0,67432.0,0.000822]
[1729877849222,0.18399196,67433.0,67432.0,0.000822]
[1729877849418,0.19770184,67433.0,67432.0,0.000822]
[1729877850629,0.19764531,67433.0,67432.0,0.000822]
[1729877850854,0.20101271,67433.0,67432.0,0.000822]
[1729877854217,0.20099408,67433.0,67432.0,0.000822]
[1729877854441,0.16536187,67433.0,67432.0,0.000822]
[1729877854662,0.20098049,67433.0,67432.0,0.000822]
[1729877856190,0.40059431,67433.0,67432.0,0.000822]
[1729877856419,0.52005936,67433.0,67432.0,0.000822]
[1729877856626,0.49722691,67433.0,67432.0,0.000822]
[1729877857259,0.52003744,67433.0,67432.0,0.000822]
[1729877857473,0.54103675,67433.0,67432.0,0.000822]
[1729877857679,0.49721563,67433.0,67432.0,0.000822]
[1729877857893,0.49719767,67433.0,67432.0,0.000822]
[1729877858125,0.49919767,67433.0,67432.0,0.000822]
[1729877858550,0.66470148,67433.0,67432.0,0.000822]
[1729877858763,0.73050568,67433.0,67432.0,0.000822]
[1729877858977,0.91415382,67433.0,67432.0,0.000822]
[1729877859189,0.92342875,67433.0,67432.0,0.000822]
[1729877859467,0.66470148,67433.0,67432.0,0.000822]
[1729877859681,0.81520529,67433.0,67432.0,0.000822]
[1729877860106,0.81320529,67433.0,67432.0,0.000822]
[1729877860346,0.66605557,67433.0,67432.0,0.000822]
[1729877860576,0.50219767,67433.0,67432.0,0.000822]
[1729877860813,0.48028874,67433.0,67432.0,0.000822]
[1729877861252,0.430995,67433.0,67432.0,0.000822]
[1729877861483,0.50214697,67433.0,67432.0,0.000822]
[1729877861702,0.48025473,67433.0,67432.0,0.000822]
[1729877861922,0.47525473,67433.0,67432.0,0.000822]
[1729877862134,0.50214954,67433.0,67432.0,0.000822]
[1729877862344,0.52495497,67433.0,67432.0,0.000822]
[1729877862557,0.50379202,67433.0,67432.0,0.000822]
[1729877863436,0.49879202,67433.0,67432.0,0.000822]
[1729877863646,0.48189873,67433.0,67432.0,0.000822]
[1729877864091,0.50379311,67433.0,67432.0,0.000822]
[1729877864515,0.48189873,67433.0,67432.0,0.000822]
[1729877864937,0.50378998,67433.0,67432.0,0.000822]
[1729877865148,0.48189751,67433.0,67432.0,0.000822]
[1729877865390,0.50379129,67433.0,67432.0,0.000822]
[1729877866517,0.83260357,67433.0,67432.0,0.000822]
[1729877866756,0.81479891,67433.0,67432.0,0.000822]
[1729877866993,0.6642951,67433.0,67432.0,0.000822]
[1729877868133,0.6662951,67433.0,67432.0,0.000822]
[1729877868365,0.60683238,67433.0,67432.0,0.000822]
[1729877868570,0.666331,67433.0,67432.0,0.000822]
[1729877868775,0.664331,67433.0,67432.0,0.000822]
[1729877870282,0.666331,67433.0,67432.0,0.000822]
[1729877870494,0.664331,67433.0,67432.0,0.000822]
[1729877870944,0.666331,67433.0,67432.0,0.000822]
[1729877871581,0.664331,67433.0,67432.0,0.000822]
[1729877871804,0.666331,67433.0,67432.0,0.000822]
[1729877872014,0.664331,67433.0,67432.0,0.000822]
[1729877872461,0.666331,67433.0,67432.0,0.000822]
[1729877872917,0.81683481,67433.0,67432.0,0.000822]
[1729877873128,0.88342795,67433.0,67432.0,0.000822]
[1729877873349,0.860612,67433.0,67432.0,0.000822]
[1729877873565,0.14833,67417.0,67416.0,0.22257835]
[1729877873783,0.18392531,67417.0,67416.0,0.22257835]
[1729877874003,0.19761488,67417.0,67416.0,0.22257835]
[1729877874211,0.14834,67413.0,67409.0,0.22257835]
[1729877874424,0.0136905,67412.0,67409.0,0.22257835]
[1729877874632,0.0136905,67411.0,67409.0,0.22257835]
[1729877874871,0.0136905,67410.0,67405.0,0.373011]
[1729877875094,0.0136905,67409.0,67406.0,0.37308216]
[1729877875330,0.148338,67414.0,67408.0,0.14835]
[1729877875823,0.01370511,67413.0,67408.0,0.14835]
[1729877876091,0.01370511,67412.0,67407.0,0.148352]
[1729877876292,0.01370511,67411.0,67407.0,0.15050381]
[1729877876523,0.01370511,67410.0,67408.0,0.14835]
[1729877876828,0.01370511,67409.0,67408.0,0.14835]
[1729877877599,0.01370511,67409.0,67407.0,0.15050381]
[1729877877867,0.01370511,67408.0,67407.0,0.29885581]
[1729877878071,0.01370511,67408.0,67405.0,0.0763]
[1729877878271,0.01370511,67407.0,67406.0,0.37308216]
[1729877878490,0.01370511,67407.0,67406.0,0.29885781]
[1729877878719,0.02192817,67414.0,67406.0,0.15050381]
[1729877878930,0.03563692,67413.0,67409.0,0.148347]
[1729877879132,0.148334,67415.0,67409.0,0.148347]
[1729877879133,0.01370875,67412.0,67409.0,0.148347]
[1729877879341,0.01370875,67412.0,67407.0,0.14835]
[1729877879563,0.01370875,67411.0,67407.0,0.14835]
[1729877879764,0.01370875,67410.0,67407.0,0.14835]
[1729877879958,0.01370875,67409.0,67407.0,0.133548]
[1729877880165,0.01370875,67408.0,67407.0,0.133548]
[1729877881057,0.01370875,67408.0,67406.0,0.15050381]
[1729877881268,0.01370875,67407.0,67406.0,0.15050381]
[1729877881492,0.01370875,67407.0,67406.0,0.29885781]
[1729877882689,0.19169975,67422.0,67417.0,0.14833]
[1729877882690,0.02195451,67418.0,67417.0,0.14833]
[1729877882925,0.22257835,67422.0,67421.0,0.148321]
[1729877883135,0.23630103,67422.0,67421.0,0.29882481]
[1729877883357,0.01372268,67422.0,67421.0,0.29882481]
[1729877884042,0.01372268,67422.0,67421.0,0.30179091]
[1729877884291,0.01372268,67422.0,67421.0,0.40222481]
[1729877884537,0.001644,67433.0,67421.0,0.40222481]
[1729877884538,0.01372344,67428.0,67427.0,0.148308]
[1729877884755,0.01372344,67428.0,67427.0,0.29881181]
[1729877885234,0.001644,67433.0,67427.0,0.15050381]
[1729877885465,0.1483,67431.0,67428.0,0.15050381]
[1729877885685,0.01371893,67432.0,67428.0,0.15050381]
[1729877885944,0.01371893,67431.0,67428.0,0.15050381]
[1729877886176,0.01371893,67430.0,67428.0,0.29880981]
[1729877886410,0.01371893,67429.0,67428.0,0.15050381]
[1729877886648,0.01371893,67429.0,67421.0,0.0754]
[1729877886888,0.16202593,67428.0,67422.0,0.15050381]
[1729877887126,0.01371893,67427.0,67422.0,0.15050381]
[1729877887387,0.148299,67431.0,67423.0,0.148316]
[1729877887638,0.0137116,67430.0,67424.0,0.29663]
[1729877887856,0.0137116,67429.0,67423.0,0.15050381]
[1729877888114,0.0137116,67428.0,67427.0,0.148308]
[1729877888352,0.001644,67433.0,67427.0,0.29881181]
[1729877888603,0.001644,67433.0,67425.0,0.296625]
[1729877888604,0.01370871,67432.0,67428.0,0.15050381]
[1729877888859,0.1483,67431.0,67428.0,0.15050381]
[1729877889107,0.148302,67430.0,67428.0,0.15050381]
[1729877889349,0.01370871,67429.0,67428.0,0.15050381]
[1729877890525,0.01370871,67429.0,67416.0,0.51924335]
[1729877890526,0.148313,67425.0,67418.0,0.148327]
[1729877890761,0.148313,67425.0,67418.0,0.15050381]
[1729877890762,0.1688579,67425.0,67418.0,0.15050381]
[1729877891005,0.148318,67423.0,67418.0,0.15050381]
[1729877891246,0.01370488,67422.0,67418.0,0.15050381]